[Event "13th Palmanova Festival A 2024"]
[Site "Palmanova"]
[Date "2024.12.31"]
[Round "6.5"]
[White "Cina`, Vittorio"]
[Black "Skrbec, Leon"]
[Result "1/2-1/2"]
[ECO "E11"]
[WhiteElo "2325"]
[BlackElo "2265"]
[Annotator "TA"]
[PlyCount "101"]
[EventDate "2024.12.27"]
[EventCountry "ITA"]
[SourceTitle "playchess.com"]
[Source "ChessBase"]
[SourceQuality "1"]
[TimeControl "6000+30"]

{[%evp 15,101,35,27,8,17,11,12,-18,7,0,22,20,79,50,52,0,60,37,39,31,44,18,48,0,30,-34,-34,-37,-33,-34,-34,-36,-33,-277,-270,-654,-30,-36,0,-31,0,0,0,0,0,0,61,75,77,73,65,38,208,39,45,12,10,11,12,4,47,52,52,52,52,52,47,45,47,47,47,47,47,47,47,47,47,47,47,47,47,47,47,29,47,47,47,47]} 1. d4 {[%emt 0:03:03]} Nf6 {[%emt 0:00:10]} 2. c4 {[%emt 0:00:08]} e6 {[%emt 0:00:17]} 3. Nf3 {[%emt 0:00:06]} Bb4+ {[%emt 0:00:42]} 4. Nbd2 {[%emt 0:00:06]} O-O {[%emt 0:00:33]} 5. a3 {[%emt 0:00:44]} Be7 {[%emt 0:02:34]} 6. e4 {[%emt 0:03:51]} d5 {[%emt 0:00:24]} 7. e5 {[%emt 0:05:28]} Ne4 {[%emt 0:02:35]} 8. Bd3 {[%emt 0:01:24]} Nxd2 {[%emt 0:00:39]} 9. Qxd2 {[%emt 0:00:53]} dxc4 $1 {[%emt 0:15:09]} 10. Bxc4 {[%emt 0:00:18]} Bd7 {[%emt 0:01:21]} 11. h4 {[%emt 0:13:32]} Bc6 {[%emt 0:10:36]} 12. Rh3 {[%emt 0:01:50]} Be4 {[%emt 0:01:54]} 13. Qf4 {[%emt 0:07:57]} Bxf3 {[%emt 0:02:23]} (13... Bd5 $11 14. Bd3 f5) 14. Rxf3 $16 {[%emt 0:04:12]} c5 $1 {[%emt 0:00:26]} 15. dxc5 {[%emt 0:12:55]} (15. Rg3 $14 Nc6 (15... Qxd4 16. Qxd4 cxd4 17. Bh6 $16) (15... cxd4 16. Qe4 $14) (15... Bxh4 16. Rh3 $18) 16. Qh6) 15... Nd7 {[%emt 0:00:16]} ({Better is} 15... Bxc5 $11 16. Rd3 Qe8) 16. Bd2 {[%emt 0:12:27]} Qc7 {[%emt 0:02:01]} 17. Bc3 {[%emt 0:00:56]} Nxc5 {[%emt 0:00:23]} 18. Rd1 {[%emt 0:04:09]} Qc6 {[%emt 0:16:16]} 19. h5 {[%emt 0:04:41]} (19. Bd4 $14) 19... h6 {[%emt 0:03:01]} (19... Ne4 $5) 20. Ba2 {[%emt 0:08:06]} (20. Be2 $11) 20... Bg5 $15 {[%emt 0:01:30]} 21. Qc4 {[%emt 0:01:02]} Rfd8 {[%emt 0:07:56]} 22. Bb1 {[%emt 0:03:30]} Rxd1+ {[%emt 0:00:57]} 23. Kxd1 {[%emt 0:00:03]} Rd8+ {[%emt 0:00:08]} 24. Ke2 $2 {[%emt 0:00:57]} (24. Ke1 $15) 24... b5 $19 {[%emt 0:03:22]} 25. Qb4 $2 {[%emt 0:00:20] [#]} (25. Qg4 Na4 26. Qe4 Qxe4+ (26... Nxc3+ 27. Rxc3 Qxe4+ 28. Bxe4 $14) 27. Bxe4) 25... Qd5 $2 {[%emt 0:00:13]} (25... a5 $1 $19 {[%cal Ra5b4]} 26. Qxa5 Ra8) 26. Bc2 $1 $11 {[%emt 0:00:49]} a6 {[%emt 0:00:16]} (26... Na4 $5 27. Bxa4 bxa4 28. Qxa4 Bd2 $17) 27. Rg3 {[%emt 0:02:52]} a5 {[%emt 0:08:54]} (27... Na4 $5 28. Kf1 (28. Bxa4 bxa4 29. Qxa4 Bf4 $17) 28... Nxc3 29. Qxc3 Qd2 30. Qxd2 Bxd2 $15 (30... Rxd2 31. Rc3 $14)) 28. Qg4 $1 {[%emt 0:02:39]} (28. Qxa5 Qc4+ 29. Ke1 b4 30. Qxb4 Bd2+ 31. Bxd2 Qxc2 $19) (28. Qxb5 Ne4 29. Qxd5 Nxg3+ 30. fxg3 Rxd5 $17 (30... exd5 31. Kd3 $11)) 28... Nb3 {[%emt 0:01:19]} 29. Kf1 {[%emt 0:02:15]} Nd2+ {[%emt 0:11:58]} 30. Kg1 {[%emt 0:01:12]} Qa2 {[%emt 0:00:49]} (30... Qc4 $11 31. Qxc4 Nxc4) 31. Rd3 $1 $14 {[%emt 0:04:17]} ({Reject} 31. Bxa5 Qa1+ 32. Kh2 (32. Qd1 $2 Nf3+ 33. Rxf3 Rxd1+ $19) 32... Nf1+ 33. Kh3 Nxg3 34. Kxg3 (34. Bxd8 $2 {perishes.} Ne2 $19) 34... Qxb2 (34... Rc8 35. Qe4 $11) 35. Bxd8 Bxd8 $15) 31... Rxd3 {[%emt 0:06:20]} 32. Bxd3 {[%emt 0:00:06]} Qd5 {[%emt 0:00:27]} 33. Qe2 {[%emt 0:01:53]} Nc4 $2 {[%emt 0:00:06]} (33... Nb3 $1 $14 34. Be4 (34. Bxb5 Nd4 $11) 34... Qc5) 34. g3 $2 {[%emt 0:00:34]} ({White must play} 34. a4 $1 $18) 34... a4 {[%emt 0:00:21]} 35. Bb1 {[%emt 0:03:28]} Nd2 {[%emt 0:01:35]} 36. Bxd2 {[%emt 0:01:07]} Qxd2 {[%emt 0:01:21]} 37. Qe4 {[%emt 0:01:18]} Qd1+ {[%emt 0:00:15]} 38. Kg2 {[%emt 0:01:01]} Qd5 {[%emt 0:00:06]} 39. Qxd5 {[%emt 0:01:54]} exd5 {[%emt 0:00:05]} 40. f4 {[%emt 0:00:27]} Be7 {[%emt 0:00:03]} 41. Bc2 {[%emt 0:00:00]} Bc5 {[%emt 0:00:00]} 42. Bd3 {[%emt 0:00:00]} Bd4 {[%emt 0:00:00]} 43. Bxb5 {[%emt 0:00:00]} Bxb2 {[%emt 0:00:00]} 44. Bxa4 {[%emt 0:00:00]} Bxa3 {[%emt 0:00:00]} 45. Bb3 {[%emt 0:00:00]} d4 {[%emt 0:00:00]} 46. Kf3 {[%emt 0:00:00]} Bc1 {[%emt 0:00:00]} 47. Ke4 {[%emt 0:00:00]} Be3 {[%emt 0:00:00]} 48. Bc4 {[%emt 0:00:00]} Kf8 {[%emt 0:00:00]} 49. Kf5 {[%emt 0:00:00]} Bf2 {[%emt 0:00:00]} 50. g4 {[%emt 0:00:00]} Be3 {[%emt 0:00:00]} 51. Ke4 {[%emt 0:07:30]} 1/2-1/2

[Event "13th Palmanova Festival A 2024"]
[Site "Palmanova"]
[Date "2024.12.31"]
[Round "6.6"]
[White "Pegno, Mattia"]
[Black "Kalosha, Zhiulien Oleksii"]
[Result "1/2-1/2"]
[ECO "D30"]
[WhiteElo "2243"]
[BlackElo "2306"]
[Annotator "TA"]
[PlyCount "167"]
[EventDate "2024.12.27"]
[EventCountry "ITA"]
[SourceTitle "playchess.com"]
[Source "ChessBase"]
[SourceQuality "1"]
[TimeControl "6000+30"]

{[%evp 63,167,-241,-225,-234,-233,-232,-233,-244,-243,-266,-245,-316,-120,-120,0,0,0,0,0,0,0,0,0,0,0,0,8,8,58,18,58,17,81,61,102,95,108,104,184,183,147,125,107,0,0,0,0,0,0,0,0,0,8,0,0,0,0,0,0,0,0,0,0,0,0,0,0,0,8,8,8,0,8,8,8,8,8,8,8,8,8,8,8,0,0,0,0,0,0,0,0,0,0,0,0,0,0,0,0,0,0,0,0,0,0,0]} 1. d4 {[%emt 0:05:47]} d5 {[%emt 0:00:11]} 2. c4 {[%emt 0:00:20]} e6 {[%emt 0:00:28]} 3. Nf3 {[%emt 0:00:36]} c6 {[%emt 0:00:52]} 4. Qc2 {[%emt 0:00:39]} Nf6 {[%emt 0:01:28]} 5. Bg5 {[%emt 0:01:11]} h6 {[%emt 0:05:48]} 6. Bh4 {[%emt 0:09:35]} dxc4 {[%emt 0:06:25]} 7. Qxc4 {[%emt 0:01:51]} Be7 {[%emt 0:03:38]} 8. Nbd2 {[%emt 0:04:34]} b6 {[%emt 0:11:55]} 9. Qc2 {[%emt 0:22:28]} O-O {[%emt 0:07:32]} 10. e3 {[%emt 0:04:01]} Bb7 {[%emt 0:01:00]} 11. Be2 {[%emt 0:03:08]} Nbd7 {[%emt 0:00:53]} 12. O-O {[%emt 0:01:03]} Rc8 {[%emt 0:00:53]} 13. Rac1 {[%emt 0:03:59]} c5 {[%emt 0:06:02]} 14. Qb1 {[%emt 0:04:54]} Nd5 {[%emt 0:07:30]} 15. Bg3 {[%emt 0:00:27]} cxd4 {[%emt 0:11:27]} 16. Nxd4 {[%emt 0:01:56]} a6 {[%emt 0:00:14]} 17. e4 {[%emt 0:13:55]} N5f6 {[%emt 0:02:43]} 18. Rxc8 {[%emt 0:02:33]} Qxc8 {[%emt 0:00:08]} 19. Rc1 {[%emt 0:01:26]} Qa8 {[%emt 0:00:23]} 20. f3 {[%emt 0:00:35]} Nh5 {[%emt 0:02:33]} 21. Bf2 {[%emt 0:02:24]} Nf4 {[%emt 0:06:25]} 22. Bf1 {[%emt 0:00:44]} Rd8 {[%emt 0:00:11]} 23. Nc4 {[%emt 0:04:48]} Ng6 {[%emt 0:03:47]} 24. Nb3 {[%emt 0:01:12]} Qb8 {[%emt 0:01:37]} 25. Rd1 {[%emt 0:03:59]} Ba8 {[%emt 0:06:21]} 26. Qc2 {[%emt 0:12:07]} h5 {[%emt 0:01:09]} 27. Be3 {[%emt 0:01:50]} h4 {[%emt 0:03:33]} 28. Qf2 {[%emt 0:01:42]} b5 {[%emt 0:02:15]} 29. Nca5 {[%emt 0:00:01]} Bd6 {[%emt 0:00:28]} 30. Kh1 {[%emt 0:00:59]} Bxh2 {[%emt 0:02:24]} 31. Ba7 {[%emt 0:00:27]} Qc7 {[%emt 0:00:04]} 32. Bb6 {[%emt 0:00:27]} Nxb6 {[%emt 0:00:19]} 33. Rxd8+ {[%emt 0:00:06]} Qxd8 {[%emt 0:00:03]} 34. Kxh2 {[%emt 0:00:07]} Qc7+ {[%emt 0:06:26]} 35. Kg1 {[%emt 0:00:16]} Nd7 {[%emt 0:00:08]} 36. Qe1 {[%emt 0:01:37]} Nde5 {[%emt 0:02:19]} 37. Qc3 {[%emt 0:00:33]} Qxc3 $2 {[%emt 0:06:41]} (37... Qd8 $19 {and Black stays clearly on top.} 38. Kf2 Kh7) 38. bxc3 $17 {[%emt 0:00:02]} Nd7 {[%emt 0:00:06]} (38... h3 $1 $17 39. Nc5 Nh4 40. Nxa6 hxg2 41. Bxg2 Nexf3+ (41... Nhxf3+ $2 42. Kf2 $19) 42. Bxf3 Nxf3+ 43. Kf2 Bxe4) 39. c4 $11 {[%emt 0:00:51]} bxc4 {[%emt 0:01:36]} 40. Bxc4 {[%emt 0:00:04]} Nb8 {[%emt 0:00:19]} 41. Nc5 {[%emt 0:00:00]} Ne5 {[%emt 0:00:00]} 42. Bxa6 {[%emt 0:00:00]} Kf8 {[%emt 0:00:00]} 43. Bb7 {[%emt 0:00:00]} Bxb7 {[%emt 0:00:00]} 44. Naxb7 {[%emt 0:00:00]} Ke7 {[%emt 0:00:00]} 45. a4 {[%emt 0:00:00]} Ned7 {[%emt 0:00:00]} ({Black should try} 45... g5 $11) 46. Nd3 {[%emt 0:00:00]} Na6 {[%emt 0:00:00]} 47. Kh2 {[%emt 0:00:00]} g5 {[%emt 0:00:00]} (47... Nb6 $1 $11 {keeps the balance.}) 48. a5 {[%emt 0:00:00]} Kf6 {[%emt 0:00:00]} 49. Kh3 $1 {[%emt 0:00:00]} Kg6 {[%emt 0:00:00] [#]} 50. Nd8 $1 {[%emt 0:00:00]} Nac5 {[%emt 0:00:00]} (50... Nc7 $16 {keeps fighting.} 51. e5 f6) 51. Nxc5 $18 {[%emt 0:03:33]} Nxc5 {[%emt 0:00:00]} 52. Nb7 {[%emt 0:00:59]} Na6 {[%emt 0:00:00] [#]} (52... Nxb7 $2 {perishes.} 53. a6 Nc5 (53... g4+ $2 54. Kxg4 Nd6 55. a7 $18) 54. a7 $18) 53. e5 {[%emt 0:00:39]} (53. Nd6 $1 $16) 53... Kf5 $11 {[%emt 0:00:00]} 54. Nd6+ {[%emt 0:00:14]} Kxe5 {[%emt 0:00:00]} 55. Nxf7+ {[%emt 0:00:05]} Kf4 {[%emt 0:00:00]} 56. Nd6 {[%emt 0:01:32]} e5 {[%emt 0:00:00]} 57. Nc4 {[%emt 0:00:54]} Nc5 {[%emt 0:00:00]} 58. Nb6 {[%emt 0:00:30]} Kf5 {[%emt 0:00:00]} 59. Nd5 {[%emt 0:00:37]} Na6 $1 {[%emt 0:00:00]} 60. Nc3 {[%emt 0:01:19]} Kf4 {[%emt 0:00:00]} 61. Nb5 {[%emt 0:00:40]} Ke3 {[%emt 0:00:00]} 62. Nd6 {[%emt 0:00:27]} Kf4 $1 {[%emt 0:00:00]} 63. Nb5 {[%emt 0:00:28]} Ke3 {[%emt 0:00:00]} 64. Nd6 {[%emt 0:00:37]} Kf4 $1 {[%emt 0:00:00]} 65. Nc4 {[%emt 0:00:18]} Nc5 {[%emt 0:00:00]} 66. Nb2 {[%emt 0:00:42]} Kf5 {[%emt 0:00:00]} 67. Nd1 {[%emt 0:00:24]} Kf4 {[%emt 0:00:00]} 68. Nf2 {[%emt 0:00:15]} Na6 {[%emt 0:00:00]} 69. Kh2 {[%emt 0:00:33]} Nc7 {[%emt 0:00:00]} 70. Nd3+ {[%emt 0:00:33]} Kf5 {[%emt 0:00:00]} 71. Nc5 {[%emt 0:00:32]} g4 $1 {[%emt 0:00:00]} 72. fxg4+ {[%emt 0:00:37]} Kxg4 {[%emt 0:00:00]} 73. a6 {[%emt 0:00:24]} e4 {[%emt 0:00:00]} (73... Nxa6 {simplifies} 74. Nxa6 e4 75. Nb4 e3) 74. a7 {[%emt 0:00:32]} e3 {[%emt 0:00:00]} 75. Nd3 {[%emt 0:00:35]} e2 {[%emt 0:00:00]} 76. Ne1 {[%emt 0:00:27]} Na8 {[%emt 0:00:00]} 77. Nc2 {[%emt 0:00:29]} Nb6 {[%emt 0:00:00]} 78. Ne3+ {[%emt 0:00:36]} Kg5 {[%emt 0:00:00]} (78... Kh5 $5 79. Nc2 $8 Kg4 $11) 79. Nc2 {[%emt 0:00:15]} Kg4 {[%emt 0:00:00]} 80. Ne1 {[%emt 0:00:34]} Na8 {[%emt 0:00:00]} 81. Nf3 {[%emt 0:00:26]} h3 {[%emt 0:00:00]} 82. Ne1 {[%emt 0:00:48]} (82. gxh3+ Kxf3 83. h4 e1=Q (83... e1=R {leads to mate.} 84. h5 Re5 85. h6 Rh5+ 86. Kg1 Rxh6 87. Kf1 Rh1#) 84. h5 Qf1 85. h6 Qg2#) 82... hxg2 {[%emt 0:00:00]} 83. Kxg2 {[%emt 0:00:05]} Kf4 {[%emt 0:00:00]} 84. Kf2 {[%emt 0:00:18]} 1/2-1/2

[Event "13th Palmanova Festival A 2024"]
[Site "Palmanova"]
[Date "2024.12.31"]
[Round "6.7"]
[White "Knudsen, Simon"]
[Black "Candian, Lorenzo"]
[Result "1/2-1/2"]
[ECO "B28"]
[WhiteElo "2303"]
[BlackElo "2208"]
[Annotator "TA"]
[PlyCount "74"]
[EventDate "2024.12.27"]
[EventCountry "ITA"]
[SourceTitle "playchess.com"]
[Source "ChessBase"]
[SourceQuality "1"]
[TimeControl "6000+30"]

{[%evp 9,74,24,27,32,24,12,51,35,50,50,56,72,62,77,61,70,134,137,174,100,91,98,104,107,104,111,89,93,126,133,134,88,242,113,116,115,110,117,110,112,117,117,118,109,109,106,166,123,125,53,37,38,38,38,38,12,14,0,0,0,0,0,0,0,0,0,10]} 1. e4 {[%emt 0:00:02]} c5 {[%emt 0:09:57]} 2. Nf3 {[%emt 0:00:12]} a6 {[%emt 0:00:09]} 3. c3 {[%emt 0:00:07]} d5 {[%emt 0:00:09]} 4. exd5 {[%emt 0:00:54]} Qxd5 {[%emt 0:00:04]} 5. Be2 {[%emt 0:00:06]} Nf6 {[%emt 0:01:28]} 6. O-O {[%emt 0:00:08]} e6 {[%emt 0:01:18]} 7. Na3 {[%emt 0:00:09]} Nbd7 {[%emt 0:17:58]} 8. Re1 {[%emt 0:00:09]} Be7 {[%emt 0:00:37]} 9. Nc4 {[%emt 0:00:08]} b5 {[%emt 0:00:36] [#]} 10. Nfe5 $1 {[%emt 0:00:08]} Nxe5 {[%emt 0:04:44]} 11. Nxe5 {[%emt 0:00:09]} Qd6 {[%emt 0:03:23]} 12. Bf3 {[%emt 0:14:29] Prevents Bb7} Rb8 {[%emt 0:06:58] [#]} (12... Ra7 $14) 13. d4 $1 $16 {[%emt 0:05:26]} Nd5 {[%emt 0:12:41] [#]} 14. dxc5 {[%emt 0:18:00]} (14. c4 $1 $18 bxc4 15. Nxc4) 14... Qxc5 {[%emt 0:00:28]} 15. Bxd5 {[%emt 0:00:13]} Qxd5 {[%emt 0:00:31]} 16. Qxd5 {[%emt 0:00:09]} exd5 {[%emt 0:00:02]} 17. Nc6 {[%emt 0:00:13]} Rb7 {[%emt 0:00:13] Black is weak on the dark squares} 18. a4 {[%emt 0:00:07]} Rc7 {[%emt 0:03:55]} 19. axb5 {[%emt 0:12:16]} axb5 {[%emt 0:00:34]} 20. Nb4 {[%emt 0:14:49] White has more active pieces.} (20. Na7 $142 O-O 21. Bf4 (21. Nxb5 Rb7 $16)) 20... Bb7 $2 {[%emt 0:08:59]} (20... f6 $16 {was called for.}) 21. Ra5 {[%emt 0:13:22]} (21. Bf4 $18 {and the rest is easy.} Rd7 22. Nd3) 21... Kd7 {[%emt 0:08:25]} 22. Rxb5 {[%emt 0:00:45]} Bxb4 {[%emt 0:00:25]} 23. Rxb4 {[%emt 0:00:11] Threatens to win with Bf4.} Re8 {[%emt 0:00:32][%cal Re8e1]} 24. Be3 {[%emt 0:02:38]} Bc6 {[%emt 0:00:52]} 25. Rh4 {[%emt 0:03:03]} h6 {[%emt 0:03:10]} 26. Rd1 {[%emt 0:01:30]} Ke6 {[%emt 0:04:35]} 27. Rhd4 {[%emt 0:03:34]} Rd7 {[%emt 0:03:41]} (27... f6 $16 28. Re1 Kf7) 28. h3 {[%emt 0:05:42]} Rb8 {[%emt 0:00:37]} 29. Ra1 {[%emt 0:04:00]} (29. b4 $16) 29... Rxb2 $14 {[%emt 0:05:21]} 30. Ra6 {[%emt 0:00:13]} Kd6 {[%emt 0:00:01]} 31. c4 {[%emt 0:03:33]} Kc7 {[%emt 0:00:15]} 32. cxd5 {[%emt 0:00:15]} Bxd5 {[%emt 0:00:30]} 33. Rd1 {[%emt 0:01:09]} Bb7 {[%emt 0:07:08]} 34. Bf4+ {[%emt 0:03:23]} Kc8 {[%emt 0:01:06]} 35. Raa1 {[%emt 0:00:48]} Rxd1+ {[%emt 0:00:41]} 36. Rxd1 {[%emt 0:00:07]} Rb6 {[%emt 0:01:05]} 37. f3 {[%emt 0:00:51]} Re6 {[%emt 0:02:12]} 1/2-1/2

[Event "13th Palmanova Festival A 2024"]
[Site "Palmanova"]
[Date "2024.12.31"]
[Round "6.8"]
[White "Stankovic, Milos"]
[Black "Skawinski, Arkadiusz"]
[Result "1/2-1/2"]
[ECO "D00"]
[WhiteElo "2462"]
[BlackElo "2330"]
[Annotator "TA"]
[PlyCount "51"]
[EventDate "2024.12.27"]
[EventCountry "ITA"]
[SourceTitle "playchess.com"]
[Source "ChessBase"]
[SourceQuality "1"]
[TimeControl "6000+30"]

{[%evp 9,51,-2,0,-23,-20,-30,-24,-34,-37,-43,-36,-47,-41,-155,-172,-186,-126,-104,-109,-142,-123,-129,-97,-121,-19,-130,0,0,0,0,483,252,437,450,436,451,451,429,427,0,277,0,356,0]} 1. d4 {[%emt 0:01:15]} d5 {[%emt 0:00:03]} 2. Nc3 {[%emt 0:00:31]} e6 {[%emt 0:08:46]} 3. Bf4 {[%emt 0:02:30]} a6 {[%emt 0:06:15]} 4. e3 {[%emt 0:09:05]} c5 {[%emt 0:00:38]} 5. Nf3 {[%emt 0:10:35]} Nc6 {[%emt 0:02:38]} 6. a3 {[%emt 0:05:39]} Nf6 {[%emt 0:10:53]} 7. h4 {[%emt 0:03:27]} b5 {[%emt 0:21:50]} 8. h5 {[%emt 0:12:47] Black has an edge.} h6 {[%emt 0:00:05]} 9. Ne5 {[%emt 0:02:38]} Bb7 {[%emt 0:02:18]} 10. Qf3 {[%emt 0:12:11]} Qa5 {[%emt 0:15:02]} 11. Rd1 {[%emt 0:14:02]} (11. dxc5 $15 b4 12. Nxc6 Bxc6 13. Na2 Bxc5 (13... Qxc5 14. Nxb4 Bd7 15. Be5 $14) 14. c3 (14. axb4 Bxb4+ 15. c3 Be7 $17) 14... bxc3 (14... bxa3 15. b4 $16) 15. Nxc3 (15. b4 $2 Qxa3 16. bxc5 Qb2 $19)) 11... c4 $1 $17 {[%emt 0:02:09][%cal Of8a3]} 12. Be2 {[%emt 0:06:19]} Nxe5 {[%emt 0:00:36]} ({Better is} 12... Bxa3 $1 $19 13. Qg3 Nxe5 (13... Bxb2 14. Qxg7 Qxc3+ 15. Kf1 $17) 14. Bxe5 Bxb2 15. Qxg7 Qxc3+ 16. Kf1 Rh7 (16... Rg8 17. Qxf6 Ba3 18. Qxh6 $17) 17. Qxf6 Ba3 (17... Qxc2 18. Bd6)) 13. Bxe5 {[%emt 0:03:41] [#]} Ne4 {[%emt 0:00:05]} 14. O-O {[%emt 0:00:16]} Nxc3 {[%emt 0:00:07]} 15. bxc3 {[%emt 0:00:04]} Qxc3 {[%emt 0:00:12]} 16. Qg3 {[%emt 0:00:34]} Rc8 {[%emt 0:12:11]} (16... Qxc2 $17 17. Bg4 Qb3 (17... Bxa3 18. f4 $17)) 17. Bg4 {[%emt 0:01:38]} (17. Bxg7 $2 Rg8 18. Qf4 Rxg7 $19 (18... Bxg7 $2 19. Rc1 $19)) (17. f4 $1 $11 {remains equal.}) 17... Qxc2 {[%emt 0:02:41]} (17... Bxa3 $2 18. Bxe6 Rg8 (18... fxe6 $2 19. Qxg7 Rf8 20. Qxb7 $18) 19. Bxc8 Bxc8 20. Bd6 (20. Bxg7 Kd7 $18) 20... Bxd6 21. Qxd6 $18) (17... Qxa3 $17 18. f4 f5) 18. f4 $1 $11 {[%emt 0:00:11] Strongly threatening f5.} f5 {[%emt 0:06:16]} (18... Bxa3 19. f5 exf5 20. Bxf5 $18 (20. Bxg7 fxg4 21. Bxh8 Qe4 $11)) 19. Bh3 {[%emt 0:03:25]} Bc6 $2 {[%emt 0:03:46][%mdl 8192]} (19... Bxa3 $2 20. Qxg7 (20. Bxg7 Rg8 $11) 20... a5 21. Qxb7 $18 (21. Qxh8+ Kd7 $18)) (19... Qe4 $11 {and Black has nothing to worry.}) 20. Qg6+ {[%emt 0:01:03]} (20. e4 $142) 20... Ke7 $2 {[%emt 0:00:16]} (20... Kd7 21. e4 Re8 (21... fxe4 22. Qxe6+ Kd8 23. Qxc8+ Ke7 24. Qc7+ Ke8 25. Qxc6+ Kf7 26. Qe6#) (21... Qxe4 $2 {too greedy.} 22. Rfe1 $18) (21... Bxa3 $2 22. exf5 Kd8 23. Qxg7 $18) 22. exf5 Kd8) 21. Bxg7 $18 {[%emt 0:01:28]} Bxg7 {[%emt 0:00:32]} 22. Qxg7+ {[%emt 0:00:07]} Kd6 {[%emt 0:00:07]} 23. Qe5+ {[%emt 0:03:55]} Kd7 {[%emt 0:00:05] And now ...Rcg8 would win.} 24. Qg7+ {[%emt 0:00:05]} Kd6 {[%emt 0:00:03] ...Rhg8 is the strong threat.} 25. Qe5+ {[%emt 0:03:18]} Kd7 $1 {[%emt 0:00:04] [#] White must now prevent ...Rhg8.} 26. Qg7+ $2 {[%emt 0:02:36] Weighted Error Value: White=0.70/Black=0.55.  Loses game:     	---       	Black=1      Missed win:     	White=1     	---        Mistake:       	White=3     	Black=4      Inaccurate:     	White=1     	---        OK:         	White=5     	Black=8      Best:        	White=2     	Black=2      Strong:       	White=1     	Black=2} (26. e4 $1 $18 Qxe4 27. Qg7+ Kd6 28. Rfe1) 1/2-1/2

[Event "13th Palmanova Festival A 2024"]
[Site "Palmanova"]
[Date "2024.12.31"]
[Round "6.9"]
[White "Gkoumas, Georgios"]
[Black "Reza, Wojciech"]
[Result "1/2-1/2"]
[ECO "B92"]
[WhiteElo "2449"]
[BlackElo "2227"]
[Annotator "TA"]
[PlyCount "24"]
[EventDate "2024.12.27"]
[EventCountry "ITA"]
[SourceTitle "playchess.com"]
[Source "ChessBase"]
[SourceQuality "1"]
[TimeControl "6000+30"]

{[%evp 15,24,20,16,22,18,6,17,19,20,-51,-45]} 1. e4 {[%emt 0:11:24]} c5 {[%emt 0:00:42]} 2. Nf3 {[%emt 0:00:06]} d6 {[%emt 0:00:23]} 3. d4 {[%emt 0:00:11]} cxd4 {[%emt 0:00:08]} 4. Nxd4 {[%emt 0:00:04]} Nf6 {[%emt 0:00:24]} 5. Nc3 {[%emt 0:00:18]} a6 {[%emt 0:00:30]} 6. Be2 {[%emt 0:00:07]} e5 {[%emt 0:02:24]} 7. Nb3 {[%emt 0:00:07]} Be6 {[%emt 0:00:50]} 8. Be3 {[%emt 0:01:49]} Nbd7 {[%emt 0:03:19]} 9. a4 {[%emt 0:25:59]} Rc8 {[%emt 0:03:50][%cal Oc8c3]} 10. Qd3 {[%emt 0:05:02]} Bc4 {[%emt 0:24:51]} 11. Qd2 {[%emt 0:00:27]} d5 {[%emt 0:00:24]} 12. exd5 {[%emt 0:03:23]} ({White should play} 12. Nxd5 $11 Nxe4 13. Qd1 Bxb3 14. cxb3) 12... Bb4 {[%emt 0:02:27]} 1/2-1/2